bitfinex-derivatives/quotes_BTCF0:USTF0_20251120
["timestamp","ask_amount","ask_price","bid_price","bid_amount"]
[1763670930790,0.0115354,86805.0,86785.0,0.06429267]
[1763670930985,0.0115363,86798.0,86797.0,0.16403]
[1763670931187,0.00219803,86798.0,86797.0,0.16476267]
[1763670931891,0.17162803,86798.0,86797.0,0.00073267]
[1763670932403,0.011537,86793.0,86785.0,0.001]
[1763670932588,0.0115375,86789.0,86788.0,0.15966]
[1763670932895,0.00219803,86789.0,86788.0,0.16039267]
[1763670935093,0.16559803,86789.0,86788.0,0.00073267]
[1763670935294,0.16559803,86789.0,86765.0,0.04091862]
[1763670935295,0.0115395,86774.0,86773.0,0.15966]
[1763670935496,0.01373753,86774.0,86773.0,0.19420846]
[1763670935811,0.01373753,86774.0,86773.0,0.16039267]
[1763670935996,0.00017277,86782.0,86781.0,0.15966]
[1763670936191,0.0023708,86782.0,86781.0,0.16039267]
[1763670936391,0.02244448,86782.0,86781.0,0.16039267]
[1763670937596,0.02244448,86782.0,86781.0,0.16139267]
[1763670939002,0.18584448,86782.0,86781.0,0.001]
[1763670939508,0.011539,86778.0,86758.0,0.15966]
[1763670939688,0.0115403,86769.0,86768.0,0.15966]
[1763670939901,0.00219803,86769.0,86768.0,0.16039267]
[1763670942692,0.16559803,86769.0,86768.0,0.00073267]
[1763670943088,0.00219803,86769.0,86749.0,0.15966]
[1763670943303,0.0115422,86754.0,86753.0,0.15966]
[1763670943505,0.01374023,86754.0,86753.0,0.16039267]
[1763670943693,0.00017287,86762.0,86761.0,0.15966]
[1763670944010,0.00017287,86762.0,86761.0,0.16185803]
[1763670944203,0.0512,86749.0,86732.0,0.0001177]
[1763670944402,0.01374099,86748.0,86745.0,0.0007327]
[1763670945094,0.07838,86746.0,86745.0,0.0007327]
[1763670945304,0.16559799,86746.0,86745.0,0.0007327]
[1763670945490,0.011545,86733.0,86732.0,0.0001177]
[1763670945695,0.01374299,86733.0,86732.0,0.0008504]
[1763670946597,0.01374299,86733.0,86732.0,0.0018504]
[1763670946795,0.00219799,86733.0,86732.0,0.0018504]
[1763670946995,0.0115443,86739.0,86732.0,0.0018504]
[1763670947198,0.0115446,86736.0,86732.0,0.0018504]
[1763670947396,0.011545,86733.0,86732.0,0.0008504]
[1763670947597,0.01374299,86733.0,86732.0,0.0008504]
[1763670949004,0.01374299,86733.0,86732.0,0.0018504]
[1763670949698,0.01374299,86733.0,86732.0,0.0008504]
[1763670949896,0.01374299,86733.0,86732.0,0.1133304]
[1763670952309,0.17714299,86733.0,86732.0,0.0008504]
[1763670952494,0.17714299,86733.0,86732.0,0.0416104]
[1763670952694,0.01374299,86733.0,86732.0,0.0416104]
[1763670953309,0.01374299,86733.0,86732.0,0.0512504]
[1763670956103,0.09212299,86733.0,86732.0,0.0512504]
[1763670956301,0.17714299,86733.0,86732.0,0.0008504]
[1763670956506,0.0115473,86716.0,86700.0,0.14963332]
[1763670956694,0.00219799,86715.0,86711.0,0.0007327]
[1763670956894,0.00219799,86715.0,86712.0,0.0115477]
[1763670957204,9.7e-07,86717.0,86715.0,0.0115473]
[1763670957397,9.7e-07,86717.0,86716.0,0.40219803]
[1763670957600,0.0115459,86726.0,86724.0,0.0115461]
[1763670957907,0.0115458,86727.0,86726.0,0.0115458]
[1763670958107,0.01164622,86727.0,86726.0,0.01374383]
[1763670958297,0.00010042,86727.0,86726.0,0.01374383]
[1763670960310,0.16350042,86727.0,86726.0,0.00219803]
[1763670960702,0.00010042,86727.0,86726.0,0.00219803]
[1763670961508,4.2e-07,86727.0,86726.0,0.00219803]
[1763670961812,0.00017298,86735.0,86726.0,0.00219803]
[1763670961813,0.00017298,86735.0,86734.0,0.0115448]
[1763670961997,0.00017298,86735.0,86734.0,0.01374283]
[1763670962196,0.0627418,86757.0,86747.0,0.0115431]
[1763670962403,0.0115424,86753.0,86752.0,0.0115424]
[1763670962615,0.011542,86756.0,86755.0,0.0115419]
[1763670962798,0.0115419,86756.0,86755.0,0.00219803]
[1763670963203,0.0115415,86759.0,86756.0,0.0115419]
[1763670963408,0.0115415,86759.0,86747.0,0.00017298]
[1763670963409,0.0115411,86763.0,86762.0,0.011541]
[1763670963605,0.011541,86763.0,86762.0,0.00219803]
[1763670964007,0.192903,86763.0,86762.0,0.00219803]
[1763670964208,0.012543,86748.0,86747.0,0.00017298]
[1763670964506,0.221173,86748.0,86747.0,0.00017298]
[1763670965014,0.220173,86748.0,86747.0,0.00237101]
[1763670965210,0.04129624,86752.0,86747.0,0.00237101]
[1763670965513,0.04129624,86755.0,86753.0,0.0115423]
[1763670965710,0.04795,86760.0,86755.0,0.011542]
[1763670965909,0.1722219,86757.0,86756.0,0.00219803]
[1763670966117,0.220173,86748.0,86747.0,0.00017298]
[1763670966730,0.04795,86748.0,86747.0,0.00237101]
[1763670967804,0.001,86752.0,86747.0,0.00237101]
[1763670968010,0.06120383,86763.0,86762.0,0.0115411]
[1763670968208,0.01986658,86763.0,86762.0,0.01373913]
[1763670968515,0.00017298,86764.0,86762.0,0.01373913]
[1763670969210,0.07796,86763.0,86762.0,0.01373913]
[1763670969411,0.16068,86763.0,86762.0,0.00219803]
[1763670969606,0.18086802,86763.0,86762.0,0.00219803]
[1763670969819,0.18086802,86763.0,86747.0,0.00017298]
[1763670970008,0.16068,86752.0,86751.0,0.0115424]
[1763670970309,0.16068,86752.0,86751.0,0.00219803]
[1763670970718,0.21355855,86761.0,86760.0,0.0115414]
[1763670970903,0.07796,86761.0,86760.0,0.01373943]
[1763670971106,0.04133725,86763.0,86760.0,0.01373943]
[1763670971308,0.00017298,86764.0,86763.0,0.011541]
[1763670971504,0.00017298,86764.0,86763.0,0.01373903]
[1763670971702,0.08236328,86793.0,86763.0,0.01373903]
[1763670971703,0.0115385,86782.0,86778.0,0.011539]
[1763670972011,0.07796,86780.0,86779.0,0.00219803]
[1763670972216,0.16068,86780.0,86779.0,0.00219803]
[1763670972718,0.16068,86780.0,86771.0,0.0115398]
[1763670972719,0.1722198,86772.0,86771.0,0.00017287]
[1763670972918,0.1722198,86772.0,86771.0,0.0023709]
[1763670973319,0.1722198,86772.0,86771.0,0.00017287]
[1763670974610,0.16068,86772.0,86771.0,0.0023709]
[1763670974922,0.1722198,86772.0,86771.0,0.0023709]
[1763670975121,0.1732198,86772.0,86771.0,0.00017287]
[1763670975522,0.04795,86760.0,86735.0,0.03098174]
[1763670975711,0.16068,86752.0,86751.0,0.0115424]
[1763670975912,0.16068,86752.0,86751.0,0.01374043]
[1763670976313,0.07796,86752.0,86751.0,0.00219803]
[1763670976514,0.16068,86752.0,86751.0,0.01374053]
[1763670977423,0.16068,86752.0,86751.0,0.00219803]
[1763670977822,0.16068,86752.0,86751.0,0.01374063]
[1763670978518,0.05966427,86760.0,86759.0,0.0115415]
[1763670978519,0.20880287,86760.0,86759.0,0.0115415]
[1763670978720,0.20880287,86760.0,86759.0,0.01373953]
[1763670979533,0.00017287,86760.0,86759.0,0.01373953]
[1763670979718,0.00017287,86760.0,86759.0,0.00073266]
[1763670979917,0.04134998,86783.0,86774.0,0.0115395]
[1763670980146,0.00219803,86775.0,86774.0,0.01227216]
[1763670982927,0.00017287,86783.0,86782.0,0.0115384]
[1763670983131,0.00017287,86783.0,86782.0,0.01227106]
[1763670983928,0.0023709,86783.0,86782.0,0.01227106]
[1763670985223,0.1630509,86783.0,86782.0,0.00073266]
[1763670985427,0.1630509,86783.0,86782.0,0.01227046]
[1763670986124,0.1630509,86783.0,86782.0,0.00073266]
[1763670986331,0.1630509,86783.0,86782.0,0.00173266]
[1763670987017,0.1630509,86783.0,86782.0,0.00073266]
[1763670987626,0.0023709,86783.0,86782.0,0.00073266]
[1763670988231,0.00017287,86783.0,86782.0,0.00073266]
[1763670988530,0.04134998,86806.0,86804.0,0.0115349]
[1763670988743,0.04134998,86814.0,86813.0,0.0115337]
[1763670988919,0.04795,86820.0,86813.0,0.0115337]
[1763670988920,0.04795,86820.0,86819.0,0.0115329]
[1763670989127,0.08929998,86832.0,86829.0,0.0115316]
[1763670989321,0.00017277,86839.0,86838.0,0.0115304]
[1763670989524,0.1630508,86839.0,86838.0,0.00073266]
[1763670989725,0.0803308,86839.0,86838.0,0.00073266]
[1763670989941,0.1630508,86839.0,86838.0,0.00073266]
[1763670990431,0.05238,86827.0,86822.0,0.01170517]
[1763670990732,0.05238,86827.0,86824.0,0.0115323]
[1763670990929,0.05238,86827.0,86822.0,0.11245277]
[1763670990930,0.2234919,86827.0,86826.0,0.00073266]
[1763670991123,0.22568993,86827.0,86826.0,0.00073266]
[1763670991325,0.21415803,86827.0,86826.0,0.00073266]
[1763670993034,0.21415803,86827.0,86826.0,0.01226466]
[1763670994432,0.21415803,86827.0,86774.0,0.03071575]
[1763670994433,0.1742152,86807.0,86774.0,0.03071575]
[1763670994630,0.1742155,86804.0,86803.0,0.00073266]
[1763670994831,0.16487803,86804.0,86803.0,0.00073266]
[1763670996033,0.16587803,86804.0,86803.0,0.00073266]
[1763670996332,0.27157716,86804.0,86803.0,0.00073266]
[1763670996533,0.26004166,86804.0,86803.0,0.00073266]
[1763670996733,0.25904166,86804.0,86803.0,0.00073266]
[1763670996933,0.16487803,86804.0,86803.0,0.00073266]
[1763670997143,0.17540758,86804.0,86803.0,0.00073266]
[1763670997442,0.09366758,86804.0,86803.0,0.00073266]
[1763670997642,0.00219803,86804.0,86803.0,0.00073266]
[1763670997939,0.00017277,86812.0,86811.0,0.0115346]
[1763670998234,0.00017277,86812.0,86811.0,0.01226726]
[1763670998437,0.1650508,86812.0,86811.0,0.01226726]
[1763670999447,0.08174,86796.0,86795.0,0.01171027]
[1763670999631,0.13069,86801.0,86800.0,0.0115369]
[1763670999830,0.13288803,86801.0,86800.0,0.01226956]
[1763671000035,0.21382803,86801.0,86800.0,0.01226956]
[1763671000241,0.21382803,86801.0,86800.0,0.00073266]
[1763671000539,0.16268,86796.0,86795.0,0.00017277]
[1763671000844,0.16487803,86796.0,86795.0,0.00090543]
[1763671001225,0.16487803,86796.0,86795.0,2.77e-06]
[1763671001431,0.16487803,86796.0,86793.0,0.0115378]
[1763671001432,0.16268,86794.0,86793.0,0.0115378]
[1763671001627,0.16487803,86794.0,86793.0,0.01227046]
[1763671002335,0.1742182,86790.0,86789.0,0.0115379]
[1763671002537,0.16487803,86790.0,86789.0,0.0115379]
[1763671003034,0.16487803,86790.0,86789.0,0.01227056]
[1763671004041,0.00219803,86790.0,86789.0,0.01227056]
[1763671004638,0.16285277,86798.0,86797.0,0.0115373]
[1763671004839,0.1650508,86798.0,86797.0,0.01226996]
[1763671005544,0.1742178,86794.0,86793.0,0.0115377]
[1763671005744,0.16268,86783.0,86782.0,0.01227196]
[1763671005950,0.16487803,86783.0,86782.0,0.01227196]
[1763671006248,0.18543651,86783.0,86782.0,0.01227196]
[1763671006440,0.16487803,86783.0,86782.0,0.01227196]
[1763671006746,0.00219803,86783.0,86782.0,0.01227196]
[1763671008535,0.00219803,86783.0,86782.0,0.01327196]
[1763671009343,0.16268,86798.0,86797.0,0.0115369]
[1763671009646,0.16268,86798.0,86797.0,0.01373493]
[1763671010040,0.18335865,86798.0,86797.0,0.01373493]
[1763671010740,0.27594176,86798.0,86797.0,0.00219803]
[1763671011142,0.16268,86782.0,86781.0,0.01171217]
[1763671011352,0.16268,86782.0,86781.0,0.1430902]
[1763671011554,0.19216766,86801.0,86800.0,0.0115369]
[1763671011752,0.19216766,86801.0,86800.0,0.01373493]
[1763671012143,0.28457226,86801.0,86800.0,0.01373493]
[1763671012544,0.30458795,86801.0,86800.0,0.01373493]
[1763671013351,0.30458795,86801.0,86800.0,0.00219803]
[1763671014451,0.30558795,86801.0,86800.0,0.00219803]
[1763671014648,0.19316766,86801.0,86800.0,0.13137803]
[1763671014855,0.19316766,86801.0,86800.0,0.00219803]
[1763671015048,0.19216766,86801.0,86800.0,0.00219803]
[1763671015357,0.19316766,86801.0,86800.0,0.00219803]
[1763671015852,0.19216766,86801.0,86800.0,0.00219803]
[1763671016056,0.28263467,86801.0,86800.0,0.00219803]
[1763671017848,0.00017277,86806.0,86805.0,0.1407162]
[1763671018054,0.00017277,86806.0,86805.0,0.14291423]
[1763671018958,0.16285277,86806.0,86805.0,0.00219803]
[1763671020349,7e-08,86806.0,86805.0,0.13137803]
[1763671020554,8e-08,86825.0,86823.0,0.12918]
[1763671020753,0.04895,86832.0,86831.0,0.01373073]
[1763671020754,0.21163,86832.0,86831.0,0.01373073]
[1763671021259,0.02040033,86834.0,86831.0,0.13137803]
[1763671021552,0.16268,86825.0,86824.0,0.00017277]
[1763671021753,0.16368,86825.0,86824.0,0.0023708]
[1763671021956,0.16368,86825.0,86806.0,0.0115361]
[1763671021957,0.04895,86808.0,86806.0,0.157]
[1763671022150,0.04895,86820.0,86819.0,0.0785]
[1763671022458,0.13288803,86820.0,86819.0,0.15773266]
[1763671022658,0.21786803,86820.0,86819.0,0.15773266]
[1763671022854,0.22940223,86820.0,86819.0,0.00073266]
[1763671023061,0.3236594,86820.0,86819.0,0.00073266]
[1763671023556,0.1808353,86812.0,86811.0,0.00017277]
[1763671023767,0.18303333,86812.0,86811.0,0.00090543]
[1763671024063,0.18303333,86812.0,86811.0,0.00017277]
[1763671024249,0.18303333,86812.0,86811.0,2.77e-06]
[1763671024448,0.21987,86801.0,86800.0,0.0115369]
[1763671024656,0.22206803,86801.0,86800.0,0.00073266]
[1763671024958,0.0115353,86812.0,86800.0,0.00073266]
[1763671024959,0.1693,86811.0,86800.0,0.00073266]
[1763671025264,0.0115367,86802.0,86801.0,0.07774]
[1763671025462,0.01373473,86802.0,86801.0,0.07847266]
[1763671025872,0.01373473,86802.0,86801.0,0.15621266]
[1763671025873,0.00219803,86802.0,86801.0,0.15621266]
[1763671026265,0.0125353,86812.0,86810.0,0.0115355]
[1763671026562,0.17149803,86811.0,86810.0,0.0115355]
[1763671026753,0.17149803,86811.0,86810.0,0.01226816]
[1763671027149,0.17149803,86811.0,86810.0,0.00073266]
[1763671028163,0.17249803,86811.0,86810.0,0.00073266]
[1763671028772,0.17249803,86811.0,86810.0,0.15621266]
[1763671029067,0.17249803,86811.0,86810.0,0.07847266]
[1763671029453,0.17249803,86811.0,86810.0,0.00073266]
[1763671029654,0.17149803,86811.0,86810.0,0.00073266]
[1763671029858,0.17249803,86811.0,86810.0,0.00073266]
[1763671030866,0.08751803,86811.0,86810.0,0.15621266]
[1763671031163,0.00319803,86811.0,86810.0,0.15621266]
[1763671031463,0.00319803,86811.0,86810.0,0.00073266]
[1763671031464,0.17249803,86811.0,86810.0,0.00073266]
[1763671031767,0.1693,86798.0,86796.0,0.0115374]
[1763671031959,0.17149803,86798.0,86797.0,0.07864543]
[1763671032356,0.17149803,86798.0,86797.0,0.00090543]
[1763671033963,0.08651803,86798.0,86797.0,0.15638543]
[1763671034164,0.17149803,86798.0,86797.0,0.00090543]
[1763671034358,0.17149803,86798.0,86797.0,0.00017277]
[1763671034668,0.08432,86779.0,86778.0,0.0894498]
[1763671034869,0.08651803,86779.0,86778.0,0.19433246]
[1763671035269,0.17149803,86779.0,86778.0,0.15655266]
[1763671035863,0.1693,86766.0,86765.0,0.0115415]
[1763671036065,0.05057,86760.0,86752.0,0.03071575]
[1763671036361,0.05057,86760.0,86740.0,0.1496269]
[1763671036362,0.22206803,86760.0,86759.0,0.00073266]
[1763671036870,0.22206803,86760.0,86734.0,0.04091862]
[1763671036871,0.05276803,86760.0,86740.0,0.1496269]
[1763671037063,0.05276803,86760.0,86746.0,0.11277266]
[1763671037264,0.08432,86751.0,86747.0,0.0115439]
[1763671037464,0.13774803,86760.0,86759.0,0.01227496]
[1763671037667,0.22206803,86760.0,86759.0,0.01227496]
[1763671038259,0.13708803,86760.0,86759.0,0.16809496]
[1763671038459,0.00017287,86765.0,86764.0,0.1673617]
[1763671038656,0.0023709,86765.0,86764.0,0.16809436]
[1763671038871,0.0866909,86765.0,86764.0,0.16809436]
[1763671039268,0.1716709,86765.0,86764.0,0.00073266]
[1763671039666,0.08432,86747.0,86746.0,0.0894541]
[1763671039871,0.08432,86747.0,86746.0,0.28013676]
[1763671040072,0.08651803,86747.0,86746.0,0.16809676]
[1763671040267,0.17149803,86747.0,86746.0,0.07864266]
[1763671040572,0.17149803,86747.0,86746.0,0.00073266]
[1763671041269,0.2314154,86736.0,86735.0,9.099e-05]
[1763671041477,0.23361343,86736.0,86735.0,0.05534365]
[1763671041991,0.23361343,86736.0,86735.0,0.00082365]
[1763671042275,0.22206803,86736.0,86735.0,0.11290365]
[1763671042473,0.22206803,86736.0,86735.0,0.28026915]
[1763671042674,0.23361343,86736.0,86735.0,0.26872365]
[1763671042970,0.22206803,86736.0,86735.0,0.28026915]
[1763671043266,0.23361343,86736.0,86735.0,0.00082365]
[1763671043671,0.22206803,86736.0,86735.0,0.00082365]
[1763671043868,0.23361343,86736.0,86735.0,0.00082365]
[1763671044071,0.23361343,86736.0,86735.0,0.09027915]
[1763671044279,0.22206803,86736.0,86735.0,0.09027915]
[1763671044475,0.00219803,86736.0,86735.0,0.16818915]
[1763671044664,0.13708803,86736.0,86735.0,0.16818915]
[1763671044865,0.22206803,86736.0,86735.0,0.00082365]
[1763671045065,0.24189984,86736.0,86735.0,0.00082365]
[1763671045266,0.08432,86722.0,86710.0,0.1496269]
[1763671045466,0.08432,86722.0,86721.0,0.0894574]
[1763671045668,0.08651803,86722.0,86721.0,0.09019006]
[1763671046372,0.08660621,86722.0,86721.0,0.09019006]
[1763671047083,0.08660621,86722.0,86721.0,0.16810006]
[1763671047277,0.08660621,86722.0,86721.0,0.16910006]
[1763671047678,8.818e-05,86722.0,86721.0,0.16910006]
[1763671048283,0.00228621,86722.0,86721.0,0.16910006]
[1763671048477,0.00228621,86722.0,86721.0,0.15755266]
[1763671048680,0.17158621,86722.0,86721.0,0.16910006]
[1763671049276,0.17158621,86722.0,86721.0,0.16810006]
[1763671049478,0.17158621,86722.0,86721.0,0.00073266]
[1763671049783,0.1808491,86708.0,86707.0,0.0894592]
[1763671049981,0.18304713,86708.0,86707.0,0.00073266]
[1763671050189,0.17157915,86708.0,86707.0,0.11247266]
[1763671050376,0.16389915,86708.0,86707.0,0.11247266]
[1763671051299,0.16389915,86708.0,86707.0,0.00073266]
[1763671052285,0.16389915,86708.0,86707.0,0.01228186]
[1763671052481,0.16389915,86708.0,86707.0,0.06815186]
[1763671052789,0.16593915,86708.0,86707.0,0.12242186]
[1763671053180,0.16593915,86708.0,86707.0,0.01228186]
[1763671053884,0.17748825,86708.0,86707.0,0.01228186]
[1763671054187,0.1526,86709.0,86708.0,0.0115489]
[1763671054386,0.1526,86709.0,86708.0,0.08863693]
[1763671054788,0.1526,86709.0,86708.0,0.07708803]
[1763671054984,0.1526,86709.0,86708.0,0.00219803]
[1763671056681,0.04109653,86742.0,86708.0,0.15005803]
[1763671056887,0.05057,86736.0,86724.0,0.14786]
[1763671057077,0.10664436,86757.0,86724.0,0.03557803]
[1763671057078,0.1641458,86734.0,86724.0,0.03557803]
[1763671057279,0.07326,86733.0,86732.0,0.1594058]
[1763671057481,0.1526,86733.0,86732.0,0.00219803]
[1763671059003,0.1526,86725.0,86724.0,0.00017298]
[1763671059195,0.1641468,86725.0,86724.0,0.00237101]
[1763671060188,0.1651468,86725.0,86724.0,0.00237101]
[1763671060483,0.1651468,86725.0,86724.0,0.07726101]
[1763671060879,0.1536,86725.0,86724.0,0.15023101]
[1763671061076,0.001,86725.0,86724.0,0.15023101]
[1763671062084,0.1536,86725.0,86724.0,0.00237101]
[1763671064683,0.0447,86724.0,86691.0,0.06409575]
[1763671064891,0.0447,86724.0,86710.0,0.00219803]
[1763671064892,0.1641487,86711.0,86710.0,0.00219803]
[1763671067292,0.0115502,86702.0,86701.0,0.01155]
[1763671067585,0.1641502,86700.0,86699.0,0.11212]
[1763671067790,0.21104823,86700.0,86699.0,0.00073266]
[1763671068592,0.0115527,86682.0,86678.0,1.5]
[1763671068791,0.1526,86680.0,86679.0,0.00073266]
[1763671068990,0.15479803,86680.0,86679.0,0.07562266]
[1763671069382,0.15479803,86680.0,86679.0,0.00073266]
[1763671069878,0.15479803,86680.0,86676.0,0.00013797]
[1763671069879,0.1526,86677.0,86676.0,0.19529797]
[1763671070084,0.00219803,86677.0,86676.0,0.19529797]
[1763671070283,0.00219803,86677.0,86676.0,1.69529797]
[1763671070997,0.00017298,86689.0,86688.0,0.19516]
[1763671071690,0.00017298,86689.0,86688.0,0.30728]
[1763671072688,0.0115488,86711.0,86688.0,0.30728]
[1763671072893,0.07545803,86710.0,86709.0,0.0864389]
[1763671073285,0.07545803,86710.0,86709.0,0.1594089]
[1763671073796,0.09553215,86710.0,86709.0,0.1594089]
[1763671073985,0.07545803,86710.0,86709.0,0.1594089]
[1763671074186,0.08700683,86710.0,86709.0,0.1594089]
[1763671074384,0.08700683,86710.0,86709.0,0.14786]
[1763671076197,0.07545803,86710.0,86709.0,0.14786]
[1763671077499,0.15479803,86710.0,86709.0,0.14786]
[1763671077890,0.00219803,86710.0,86709.0,0.14786]
[1763671078099,0.15479803,86710.0,86709.0,0.14786]
[1763671080299,0.15479803,86710.0,86701.0,0.00017298]
[1763671080300,0.1641499,86702.0,86701.0,0.00017298]
[1763671080611,0.1641499,86702.0,86701.0,0.15958298]
[1763671080612,0.00219803,86702.0,86701.0,0.15958298]
[1763671081002,0.0115488,86711.0,86710.0,0.14786]
[1763671081301,0.0115488,86711.0,86701.0,0.01172298]
[1763671081302,0.1526,86702.0,86701.0,0.00017298]
[1763671081499,0.19949803,86702.0,86701.0,0.00017298]
[1763671081894,0.15479803,86702.0,86701.0,0.00017298]
[1763671082404,0.15479803,86702.0,86692.0,0.11216]
[1763671082405,0.15641,86693.0,86692.0,0.11216]
[1763671082598,0.17015913,86693.0,86692.0,0.26112]
[1763671082806,0.00073267,86693.0,86692.0,0.26331803]
[1763671083905,0.00073267,86693.0,86665.0,0.03071575]
[1763671084102,0.06194436,86690.0,86678.0,0.087563]
[1763671084292,0.06194436,86690.0,86671.0,0.11216]
[1763671084293,0.0115524,86684.0,86683.0,0.14896]
[1763671084499,0.011552,86687.0,86686.0,0.14896]
[1763671084797,0.01228467,86687.0,86686.0,0.00219803]
[1763671086299,0.01228467,86687.0,86686.0,0.07820803]
[1763671086300,0.01328467,86687.0,86686.0,0.07820803]
[1763671086508,0.01328467,86687.0,86686.0,0.15115803]
[1763671086806,0.00173267,86687.0,86686.0,0.15115803]
[1763671087002,0.00273267,86687.0,86686.0,0.15115803]
[1763671087707,0.00173267,86687.0,86686.0,0.15115803]
[1763671088099,0.00273267,86687.0,86686.0,0.15115803]
[1763671088507,0.00173267,86687.0,86686.0,0.15115803]
[1763671088805,0.00173267,86687.0,86686.0,0.00219803]
[1763671089010,0.06382388,86687.0,86686.0,0.00219803]
[1763671089200,0.00173267,86687.0,86686.0,0.00219803]
[1763671090406,0.00073267,86687.0,86686.0,0.00219803]
[1763671090606,0.00173267,86687.0,86686.0,0.00219803]
[1763671091009,0.00273267,86687.0,86686.0,0.00219803]
[1763671091203,0.00373267,86687.0,86686.0,0.00219803]
[1763671091603,0.0115532,86677.0,86676.0,1.50013797]
[1763671091812,0.0115556,86659.0,86658.0,0.19626]
[1763671092001,0.01228827,86659.0,86658.0,0.31061803]
[1763671092202,0.01172769,86667.0,86666.0,0.14896]
[1763671092512,0.01246036,86667.0,86666.0,0.15115803]
[1763671092712,0.01246036,86667.0,86666.0,0.16271273]
[1763671092713,0.00090576,86667.0,86666.0,0.16271273]
[1763671092911,0.0010415,86667.0,86666.0,0.16271273]
[1763671093103,0.0010415,86667.0,86666.0,0.15115803]
[1763671093499,0.0010415,86667.0,86666.0,0.00219803]
[1763671093913,0.0020415,86667.0,86666.0,0.00219803]
[1763671094104,0.0020415,86667.0,86666.0,0.15115803]
[1763671096601,0.0020415,86667.0,86666.0,0.00219803]
[1763671097011,0.0020415,86667.0,86658.0,1.5473]
[1763671097012,0.0115556,86659.0,86658.0,1.5473]
[1763671097313,0.10387069,86659.0,86658.0,0.04949803]
[1763671097505,0.01243292,86659.0,86658.0,0.00219803]
[1763671098114,0.0115564,86653.0,86652.0,0.11216]
[1763671098318,0.01228907,86653.0,86652.0,0.11435803]
[1763671098509,0.01128907,86653.0,86652.0,0.11435803]
[1763671099411,0.00073267,86653.0,86652.0,0.07820803]
[1763671099620,0.00073267,86653.0,86652.0,0.15115803]
[1763671100109,0.00373267,86653.0,86652.0,0.15115803]
[1763671100314,0.003,86653.0,86652.0,0.15115803]
[1763671100510,0.00014465,86659.0,86658.0,0.19442]
[1763671100711,0.00014465,86659.0,86658.0,0.19661803]
[1763671101516,0.00017309,86667.0,86666.0,0.1605147]
[1763671101705,0.0115531,86679.0,86678.0,0.14896]
[1763671101908,0.03264667,86679.0,86678.0,0.00219803]
[1763671102216,0.01228577,86679.0,86678.0,0.00219803]
[1763671102911,0.01328577,86679.0,86678.0,0.00219803]
[1763671103311,0.01228577,86679.0,86678.0,0.00219803]
[1763671103613,0.01428577,86679.0,86678.0,0.00219803]
[1763671103811,0.011554,86671.0,86670.0,0.00017309]
[1763671104012,0.01228667,86671.0,86670.0,0.00017309]
[1763671104408,0.01228667,86671.0,86670.0,0.00237112]
[1763671105212,0.01228667,86671.0,86670.0,0.00017309]
[1763671105414,0.01228667,86671.0,86670.0,9e-08]
[1763671105617,0.01228667,86671.0,86652.0,0.14896]
[1763671105618,0.0115565,86653.0,86652.0,0.14896]
[1763671105917,0.00073267,86653.0,86652.0,0.15115803]
[1763671106311,0.0115556,86659.0,86658.0,0.12147]
[1763671106512,0.0115556,86659.0,86658.0,0.19661803]
[1763671106513,0.01228827,86659.0,86658.0,0.19661803]
[1763671107620,0.01228827,86659.0,86658.0,0.04765803]
[1763671108223,0.01228827,86659.0,86658.0,0.19661803]
[1763671108224,0.00073267,86659.0,86658.0,0.19661803]
[1763671108520,0.00173267,86659.0,86658.0,0.19661803]
[1763671108715,0.00173267,86659.0,86658.0,0.04765803]
[1763671109113,0.093272,86659.0,86658.0,0.04765803]
[1763671109718,0.093272,86659.0,86647.0,0.15766]
[1763671109719,0.0115571,86648.0,86647.0,0.12147]
[1763671110017,0.01228977,86648.0,86647.0,0.12366803]
[1763671110219,0.01228977,86648.0,86647.0,0.19661803]
[1763671111622,0.01328977,86648.0,86647.0,0.19661803]
[1763671112323,0.01328977,86648.0,86637.0,1.5]
[1763671112525,0.0115594,86631.0,86628.0,0.0888897]
[1763671112714,0.06210187,86633.0,86632.0,0.15525]
[1763671113024,0.00073267,86633.0,86632.0,0.15744803]
[1763671114719,0.00173267,86633.0,86632.0,0.15744803]
[1763671119535,0.001,86633.0,86632.0,0.15744803]
[1763671119824,0.00017309,86638.0,86637.0,0.1668086]
[1763671120014,0.00017309,86638.0,86637.0,0.16900663]
[1763671120219,0.11504136,86657.0,86655.0,0.1668062]
[1763671120423,0.117776,86657.0,86656.0,0.15744803]
[1763671120619,0.10695267,86657.0,86656.0,0.15744803]
[1763671120824,0.00073267,86657.0,86656.0,0.15744803]
[1763671121426,0.05384267,86657.0,86656.0,0.15744803]
[1763671121722,0.10795267,86657.0,86656.0,0.15744803]
[1763671122131,0.10622,86649.0,86648.0,0.00017309]
[1763671122333,0.16910136,86649.0,86648.0,0.15762112]
[1763671122541,0.06288136,86649.0,86648.0,0.15762112]
[1763671122716,0.07443836,86649.0,86648.0,0.15762112]
[1763671123027,0.18065836,86649.0,86648.0,0.07970112]
[1763671123227,0.11850967,86649.0,86648.0,0.00237112]
[1763671123418,0.06539967,86649.0,86648.0,0.15762112]
[1763671123619,0.11850967,86649.0,86648.0,0.07970112]
[1763671123825,0.11850967,86649.0,86648.0,0.15762112]
[1763671124024,0.11950967,86649.0,86648.0,0.15762112]
[1763671124226,0.00173267,86649.0,86648.0,0.15762112]
[1763671124531,0.00273267,86649.0,86648.0,0.15762112]
[1763671124726,0.04418484,86649.0,86648.0,0.15762112]
[1763671124932,0.10348536,86673.0,86672.0,0.15525]
[1763671125241,0.32958989,86713.0,86672.0,0.15525]
[1763671125242,0.04551,86713.0,86697.0,0.0115505]
[1763671125421,0.04551,86713.0,86698.0,0.00219803]
[1763671125422,0.0115492,86708.0,86698.0,0.00219803]
[1763671125621,0.1613,86699.0,86698.0,0.00219803]
[1763671126623,0.1613,86691.0,86690.0,0.00017309]
[1763671127938,0.1633,86691.0,86690.0,0.00017309]
[1763671128832,0.1643,86691.0,86690.0,0.00017309]
[1763671129536,0.1633,86691.0,86690.0,0.00017309]
[1763671129738,0.1643,86691.0,86690.0,0.00017309]
[1763671130131,0.0115516,86690.0,86674.0,0.0115536]
[1763671130324,0.0115516,86690.0,86680.0,0.0115527]
[1763671130325,0.1613,86681.0,86680.0,0.0115527]
[1763671130521,0.08021,86681.0,86680.0,0.16900073]
[1763671130727,0.1613,86681.0,86680.0,0.00219803]
[1763671131736,0.1623,86681.0,86680.0,0.00219803]
[1763671133438,0.1633,86681.0,86680.0,0.00219803]
[1763671133637,0.003,86681.0,86680.0,0.15744803]
[1763671134241,0.002,86681.0,86680.0,0.15744803]
[1763671135246,0.001,86681.0,86680.0,0.15744803]
[1763671135839,0.001,86681.0,86680.0,0.16900083]
[1763671136737,0.00017309,86689.0,86688.0,0.1668018]
[1763671136937,0.08038309,86689.0,86688.0,0.16899983]
[1763671137247,0.08038309,86689.0,86688.0,0.15744803]
[1763671137635,0.00017309,86689.0,86688.0,0.15744803]
[1763671137839,0.08038309,86689.0,86688.0,0.15744803]